bitfinex/quotes_BTCUSD_20240818
["timestamp","ask_amount","ask_price","bid_price","bid_amount"]
[1723958417320,0.00493457,59673.0,59667.0,0.0757]
[1723958417518,0.00493457,59673.0,59667.0,0.51177509]
[1723958417519,0.54890911,59673.0,59667.0,0.51177509]
[1723958417770,0.54890911,59673.0,59662.0,0.0757]
[1723958417771,0.87759443,59673.0,59662.0,0.0757]
[1723958418017,1.10114143,59673.0,59662.0,0.0757]
[1723958418162,1.25208467,59673.0,59662.0,0.0757]
[1723958418366,1.38029314,59673.0,59662.0,0.0757]
[1723958418542,1.2293499,59673.0,59662.0,0.0757]
[1723958418749,1.2433499,59673.0,59662.0,0.0757]
[1723958419041,1.10114143,59673.0,59662.0,0.0757]
[1723958419797,1.11514143,59673.0,59662.0,0.0757]
[1723958420506,1.12914143,59673.0,59662.0,0.0757]
[1723958420946,0.83619443,59673.0,59651.0,0.009275]
[1723958421156,0.9963363,59673.0,59672.0,0.084775]
[1723958421305,1.00641257,59673.0,59672.0,0.084775]
[1723958421506,0.98126678,59673.0,59672.0,0.084775]
[1723958421713,0.99726678,59673.0,59672.0,0.084775]
[1723958421911,0.98326678,59673.0,59672.0,0.009075]
[1723958422279,0.99726678,59673.0,59672.0,0.009075]
[1723958422498,1.11284015,59673.0,59672.0,0.009075]
[1723958423121,1.10084015,59673.0,59672.0,0.009075]
[1723958423356,1.11484015,59673.0,59672.0,0.009075]
[1723958425635,1.01434407,59673.0,59672.0,0.009075]
[1723958426014,1.13998594,59673.0,59672.0,0.009075]
[1723958426214,1.13990747,59673.0,59672.0,0.009075]
[1723958426495,1.01434407,59673.0,59672.0,0.009075]
[1723958426827,1.25469309,59673.0,59672.0,0.009075]
[1723958427028,1.27980747,59673.0,59672.0,0.009075]
[1723958427228,1.25468202,59673.0,59672.0,0.009075]
[1723958427431,1.15424407,59673.0,59672.0,0.009075]
[1723958427832,1.14024407,59673.0,59672.0,0.009075]
[1723958428051,0.98634407,59673.0,59672.0,0.009075]
[1723958428323,0.8707707,59673.0,59672.0,0.009075]
[1723958428440,0.98521027,59673.0,59672.0,0.009075]
[1723958428641,0.8807707,59673.0,59672.0,0.009075]
[1723958428964,0.8827707,59673.0,59672.0,0.009075]
[1723958429194,0.98121027,59673.0,59672.0,0.009075]
[1723958429387,0.99921027,59673.0,59672.0,0.009075]
[1723958429590,0.8987707,59673.0,59672.0,0.009075]
[1723958430204,0.9992028,59673.0,59672.0,0.009075]
[1723958430758,0.8987707,59673.0,59672.0,0.009075]
[1723958434063,1.11161007,59673.0,59672.0,0.009075]
[1723958434296,0.45740457,59672.0,59671.0,0.0002]
[1723958434472,0.77900343,59672.0,59671.0,0.0002]
[1723958434697,0.90453344,59672.0,59671.0,0.0002]
[1723958435309,0.90453758,59672.0,59671.0,0.0002]
[1723958435456,0.91853758,59672.0,59671.0,0.0002]
[1723958436317,1.04517366,59672.0,59671.0,0.0002]
[1723958436650,1.05917366,59672.0,59671.0,0.0002]
[1723958437062,0.48744557,59667.0,59666.0,1.3652]
[1723958437267,0.91134443,59667.0,59666.0,1.3652]
[1723958437469,1.01134443,59667.0,59666.0,1.3652]
[1723958437596,1.03434443,59667.0,59666.0,1.3652]
[1723958438405,1.10153443,59667.0,59666.0,1.3652]
[1723958438613,1.11553443,59667.0,59666.0,1.3652]
[1723958438781,0.90023443,59667.0,59666.0,1.3652]
[1723958438985,0.65150754,59667.0,59666.0,1.4402]
[1723958439186,0.65150754,59667.0,59666.0,1.5011]
[1723958439412,0.63750754,59667.0,59666.0,1.5011]
[1723958439675,0.65150754,59667.0,59666.0,1.5011]
[1723958440225,0.53750754,59667.0,59666.0,1.5011]
[1723958440454,0.43694954,59667.0,59666.0,1.5011]
[1723958440853,0.45094954,59667.0,59666.0,1.5011]
[1723958441225,0.43694954,59667.0,59666.0,1.5011]
[1723958441432,0.44994954,59667.0,59666.0,1.5011]
[1723958441652,0.53694954,59667.0,59666.0,1.5011]
[1723958442311,0.52294954,59667.0,59666.0,1.5011]
[1723958442512,0.42294954,59667.0,59666.0,1.5011]
[1723958442756,0.43694954,59667.0,59666.0,1.5011]
[1723958443248,0.43294954,59667.0,59666.0,1.5011]
[1723958443870,0.44294954,59667.0,59666.0,1.5011]
[1723958444906,0.44294954,59667.0,59666.0,1.5020075]
[1723958446101,0.56650754,59667.0,59666.0,1.4411075]
[1723958447230,0.59302711,59667.0,59666.0,1.4411075]
[1723958448636,0.6031497,59667.0,59666.0,1.4411075]
[1723958449302,0.59302711,59667.0,59666.0,1.4411075]
[1723958452266,0.57002711,59667.0,59666.0,1.4411075]
[1723958452470,0.65172711,59667.0,59666.0,1.4411075]
[1723958457466,0.65255211,59667.0,59666.0,1.4411075]
[1723958460050,0.19818157,59667.0,59666.0,1.5054075]
[1723958462244,0.29873957,59667.0,59666.0,1.5054075]
[1723958462446,0.19818157,59667.0,59666.0,1.5054075]
[1723958463736,0.29873957,59667.0,59666.0,1.5054075]
[1723958464774,0.29873957,59667.0,59666.0,1.3661075]
[1723958464775,0.65255211,59667.0,59666.0,1.3661075]
[1723958468838,0.57085211,59667.0,59666.0,1.3661075]
[1723958469062,0.65255211,59667.0,59666.0,1.4421075]
[1723958469304,0.55199411,59667.0,59666.0,1.4421075]
[1723958469668,0.55199411,59667.0,59666.0,1.5041075]
[1723958469669,0.47029411,59667.0,59666.0,1.5041075]
[1723958471985,0.65255211,59667.0,59666.0,1.4421075]
[1723958473000,0.55199411,59667.0,59666.0,1.4421075]
[1723958478822,0.65255211,59667.0,59666.0,1.4421075]
[1723958479028,0.55199411,59667.0,59666.0,1.4421075]
[1723958484535,0.71242657,59667.0,59666.0,1.3661075]
[1723958484738,0.89605211,59667.0,59666.0,1.3661075]
[1723958484937,1.04479128,59667.0,59666.0,1.3661075]
[1723958487019,1.04579128,59667.0,59666.0,1.3661075]
[1723958487245,1.04779128,59667.0,59666.0,1.3661075]
[1723958488377,0.91998668,59667.0,59666.0,1.3661075]
[1723958488871,1.05454468,59667.0,59666.0,1.3661075]
[1723958489104,1.04454468,59667.0,59666.0,1.3661075]
[1723958489380,1.15910268,59667.0,59666.0,1.3661075]
[1723958489614,1.15910268,59667.0,59666.0,1.1985075]
[1723958489915,1.05854468,59667.0,59666.0,1.1985075]
[1723958490401,1.04854468,59667.0,59666.0,1.1985075]
[1723958490866,1.33510268,59667.0,59666.0,0.21917412]
[1723958491100,1.33510268,59667.0,59651.0,0.009275]
[1723958491101,0.50057457,59652.0,59651.0,0.009275]
[1723958491342,1.00393168,59652.0,59651.0,0.009275]
[1723958491787,1.00593168,59652.0,59651.0,0.009275]
[1723958492233,0.77369711,59652.0,59651.0,0.009275]
[1723958492548,0.82887754,59652.0,59651.0,0.009275]
[1723958492712,0.8691668,59652.0,59651.0,0.009275]
[1723958493628,0.84287754,59652.0,59651.0,0.009275]
[1723958494133,0.93046529,59652.0,59651.0,0.009275]
[1723958494360,0.93667754,59652.0,59651.0,0.009275]
[1723958494813,0.90867754,59652.0,59651.0,0.009275]
[1723958495039,0.93667754,59652.0,59651.0,0.009275]
[1723958495275,0.93767754,59652.0,59651.0,0.009275]
[1723958495506,0.93667754,59652.0,59651.0,0.009275]
[1723958495970,0.94659212,59652.0,59651.0,0.009275]
[1723958496210,1.04455133,59652.0,59651.0,0.009275]
[1723958496451,1.04555133,59652.0,59651.0,0.009275]
[1723958496679,0.94759212,59652.0,59651.0,0.009275]
[1723958497380,0.94959212,59652.0,59651.0,0.009275]
[1723958498377,0.86679212,59652.0,59651.0,0.009275]
[1723958500899,0.89307078,59652.0,59651.0,0.009275]
[1723958502938,0.55159454,59652.0,59651.0,0.089275]
[1723958503499,0.55159454,59652.0,59651.0,0.151975]
[1723958503500,0.45101154,59652.0,59651.0,0.151975]
[1723958503817,0.42301154,59652.0,59651.0,0.151975]
[1723958504296,0.45101154,59652.0,59651.0,0.151975]
[1723958504505,0.43701154,59652.0,59651.0,0.151975]
[1723958504707,0.53301154,59652.0,59651.0,0.151975]
[1723958505459,0.43301154,59652.0,59651.0,0.151975]
[1723958506700,0.42301154,59652.0,59651.0,0.151975]
[1723958506906,0.160874,59652.0,59651.0,0.151975]
[1723958507114,0.169874,59652.0,59651.0,0.151975]
[1723958509308,0.019,59652.0,59651.0,0.384552]
[1723958509740,0.019,59652.0,59651.0,0.488137]
[1723958509944,0.019,59652.0,59651.0,0.50898622]
[1723958510117,0.019,59652.0,59651.0,0.50598221]
[1723958510315,0.050281,59665.0,59661.0,0.1457]
[1723958510519,0.051104,59667.0,59666.0,0.0653]
[1723958510719,0.051104,59667.0,59666.0,0.1457]
[1723958511171,0.151662,59667.0,59666.0,0.1457]
[1723958511777,0.051104,59667.0,59666.0,0.1457]
[1723958511965,0.055104,59667.0,59666.0,0.1457]
[1723958512157,0.051104,59667.0,59666.0,0.1457]
[1723958512871,0.051104,59667.0,59658.0,0.0653]
[1723958512872,0.050285,59659.0,59658.0,0.0653]
[1723958513089,0.150856,59659.0,59658.0,0.0653]
[1723958514432,0.251427,59659.0,59658.0,0.0653]
[1723958514612,0.251427,59659.0,59657.0,0.0804]
[1723958514613,0.150859,59658.0,59657.0,0.0804]
[1723958514973,0.42298654,59658.0,59657.0,0.0804]
[1723958516286,0.100583,59652.0,59651.0,0.009275]
[1723958516486,0.32242854,59652.0,59651.0,0.009275]
[1723958516714,0.42301154,59652.0,59651.0,0.009275]
[1723958517517,0.43701154,59652.0,59651.0,0.009275]
[1723958518143,0.44401154,59652.0,59651.0,0.009275]
[1723958519066,0.43001154,59652.0,59651.0,0.009275]
[1723958519199,0.43801154,59652.0,59651.0,0.009275]
[1723958522344,0.266457,59652.0,59651.0,0.009275]
[1723958523018,0.165874,59652.0,59651.0,0.009275]
[1723958523996,0.065291,59652.0,59651.0,0.009275]
[1723958524795,0.065291,59652.0,59651.0,0.086275]
[1723958525306,0.165874,59652.0,59651.0,0.086275]
[1723958526141,0.150874,59652.0,59651.0,0.086275]
[1723958526347,0.156874,59652.0,59651.0,0.086275]
[1723958526999,0.050291,59652.0,59651.0,0.086275]
[1723958528251,0.055291,59652.0,59651.0,0.086275]
[1723958528487,0.062291,59652.0,59651.0,0.086275]
[1723958528921,0.162874,59652.0,59651.0,0.086275]
[1723958529852,0.155874,59652.0,59651.0,0.086275]
[1723958530251,0.161874,59652.0,59651.0,0.086275]
[1723958535399,0.161874,59652.0,59651.0,0.009275]
[1723958536837,0.155874,59652.0,59651.0,0.009275]
[1723958537076,0.150874,59652.0,59651.0,0.009275]
[1723958537285,0.161874,59652.0,59651.0,0.009275]
[1723958541651,0.161874,59652.0,59651.0,0.075075]
[1723958541873,0.011,59652.0,59651.0,0.22802651]
[1723958542302,0.011,59652.0,59651.0,0.36356322]
[1723958542513,0.011,59652.0,59651.0,0.26297822]
[1723958542732,0.100567,59662.0,59653.0,0.0818]
[1723958542733,0.050286,59658.0,59653.0,0.0818]
[1723958542941,0.050286,59658.0,59657.0,0.1635]
[1723958543203,0.050286,59658.0,59657.0,0.18435951]
[1723958544042,0.056286,59658.0,59657.0,0.18435951]
[1723958544254,0.050286,59658.0,59657.0,0.18435951]
[1723958544736,0.150859,59658.0,59657.0,0.18435951]
[1723958545366,0.150859,59658.0,59657.0,0.18435516]
[1723958545592,0.156859,59658.0,59657.0,0.0818]
[1723958546418,0.163859,59658.0,59657.0,0.0818]
[1723958546829,0.156859,59658.0,59657.0,0.0818]
[1723958547655,0.013,59658.0,59657.0,0.276087]
[1723958547867,0.013,59658.0,59657.0,0.29693948]
[1723958548072,0.013,59658.0,59657.0,0.24665248]
[1723958548278,0.013,59658.0,59657.0,0.39751348]
[1723958548850,0.013,59658.0,59657.0,0.43245361]
[1723958549256,0.006,59658.0,59657.0,0.376661]
[1723958549455,0.000825,59666.0,59660.0,0.050284]
[1723958549811,0.000825,59666.0,59664.0,0.0817]
[1723958550016,0.000825,59666.0,59661.0,0.07113012]
[1723958550017,0.000825,59666.0,59661.0,0.050283]
[1723958550221,0.000825,59666.0,59662.0,0.02084768]
[1723958550425,0.000825,59666.0,59661.0,0.050283]
[1723958550560,0.000825,59666.0,59662.0,0.0817]
[1723958551160,0.003825,59666.0,59662.0,0.0817]
[1723958551358,0.007825,59666.0,59662.0,0.0817]
[1723958552800,0.003825,59666.0,59662.0,0.0817]
[1723958553001,0.007825,59666.0,59662.0,0.0817]
[1723958553467,0.010825,59666.0,59662.0,0.0817]
[1723958555032,0.004825,59666.0,59662.0,0.0817]
[1723958555913,0.000825,59666.0,59662.0,0.0817]
[1723958556319,0.004825,59666.0,59662.0,0.0817]
[1723958556487,0.007825,59666.0,59662.0,0.0817]
[1723958560437,0.058105,59666.0,59662.0,0.0817]
[1723958563464,0.007825,59666.0,59663.0,0.0801]
[1723958563666,0.007825,59666.0,59665.0,0.0817]
[1723958564462,0.004825,59666.0,59665.0,0.0817]
[1723958564664,0.007825,59666.0,59665.0,0.0817]
[1723958564863,0.004825,59666.0,59665.0,0.0817]
[1723958565286,0.003825,59666.0,59665.0,0.0817]
[1723958565632,0.055104,59666.0,59665.0,0.0817]
[1723958566137,0.051104,59666.0,59665.0,0.0817]
[1723958566520,0.055104,59666.0,59665.0,0.0817]
[1723958566718,0.055104,59666.0,59663.0,0.0801]
[1723958566719,0.050281,59665.0,59663.0,0.0801]
[1723958567536,0.150846,59663.0,59662.0,0.0009075]
[1723958568638,0.25141,59663.0,59662.0,0.0009075]
[1723958569023,0.25141,59663.0,59662.0,0.0019075]
[1723958570796,0.25141,59663.0,59662.0,0.0009075]
[1723958571175,0.25541,59663.0,59662.0,0.0009075]
[1723958571586,0.25541,59663.0,59662.0,0.021759]
[1723958571935,0.26041,59663.0,59662.0,0.021759]
[1723958572313,0.25541,59663.0,59662.0,0.021759]
[1723958572730,0.26041,59663.0,59662.0,0.021759]
[1723958573399,0.26041,59663.0,59662.0,0.0009075]
[1723958574523,0.159846,59663.0,59662.0,0.0009075]
[1723958579392,0.059282,59663.0,59662.0,0.0009075]
[1723958580004,0.159846,59663.0,59662.0,0.0009075]
[1723958583184,0.059282,59663.0,59662.0,0.0009075]
[1723958583386,0.059282,59663.0,59662.0,0.02176744]
[1723958583735,0.059282,59663.0,59662.0,0.0009075]
[1723958583926,0.009,59663.0,59662.0,0.08516785]
[1723958584054,0.009,59663.0,59662.0,0.31691685]
[1723958584255,0.009,59663.0,59662.0,0.21635085]
[1723958584875,0.009,59663.0,59662.0,0.29805085]
[1723958585102,0.009,59663.0,59662.0,0.29804839]
[1723958586146,0.009,59663.0,59662.0,0.49918039]
[1723958586345,0.009,59663.0,59662.0,0.53413791]
[1723958586748,0.009,59663.0,59662.0,0.53413701]
[1723958586954,0.009,59663.0,59662.0,0.53413634]
[1723958587517,0.009,59663.0,59662.0,0.39861344]
[1723958588109,0.004,59663.0,59662.0,0.39861344]
[1723958588427,0.001,59663.0,59662.0,0.40061344]
[1723958588646,0.002,59663.0,59662.0,0.40261344]
[1723958589256,0.002,59663.0,59662.0,0.4026136]
[1723958597032,0.002,59663.0,59662.0,0.3975136]
[1723958597254,0.002,59663.0,59662.0,0.39751405]
[1723958597690,0.002,59663.0,59662.0,0.2760905]
[1723958597917,0.002,59663.0,59662.0,0.2969479]
[1723958599904,0.002,59663.0,59662.0,0.2978554]
[1723958602975,0.002,59663.0,59662.0,0.3984214]
[1723958605461,0.002,59663.0,59662.0,0.39842075]
[1723958606480,0.002,59663.0,59662.0,0.43337658]
[1723958609914,0.002,59663.0,59662.0,0.43337614]
[1723958612546,0.002825,59663.0,59662.0,0.43337614]
[1723958613176,0.002825,59663.0,59662.0,0.377564]
[1723958613365,0.002825,59663.0,59662.0,0.43337602]
[1723958617951,0.002825,59663.0,59662.0,1.13251314]
[1723958618167,0.002825,59663.0,59662.0,1.27165199]
[1723958618385,0.002825,59663.0,59662.0,1.27164956]
[1723958619032,0.001825,59663.0,59662.0,1.26964956]
[1723958619231,0.001825,59663.0,59662.0,1.27164956]
[1723958619382,0.001,59663.0,59662.0,2.54104956]
[1723958619587,0.001,59663.0,59662.0,2.53904956]
[1723958619791,0.002,59663.0,59662.0,2.71206435]
[1723958620003,0.002,59663.0,59662.0,2.54604956]
[1723958620250,0.001,59663.0,59662.0,2.53904956]
[1723958620448,0.000825,59666.0,59665.0,0.356963]
[1723958620694,0.000825,59666.0,59665.0,1.2457317]
[1723958621377,0.000825,59666.0,59665.0,1.30407861]
[1723958621724,0.000825,59666.0,59665.0,1.29489659]
[1723958621882,0.000825,59666.0,59665.0,1.31807861]
[1723958622087,0.001825,59666.0,59665.0,1.31807861]
[1723958622289,0.001825,59666.0,59665.0,1.30889659]
[1723958622492,0.001825,59666.0,59665.0,1.45094821]
[1723958622698,0.002825,59666.0,59665.0,1.45094821]
[1723958624210,0.002825,59666.0,59665.0,1.39251718]
[1723958625419,0.002825,59666.0,59665.0,2.66191718]
[1723958626239,0.002825,59666.0,59665.0,2.65273516]
[1723958626442,0.002825,59666.0,59665.0,2.75329616]
[1723958626655,0.0804,59689.0,59676.0,0.496397]
[1723958626854,0.0804,59689.0,59676.0,0.77048873]
[1723958627572,0.0804,59689.0,59676.0,0.41669219]
[1723958627800,0.1367,59679.0,59676.0,0.17165019]
[1723958627950,0.1367,59679.0,59676.0,0.25335019]
[1723958628112,0.1367,59679.0,59676.0,0.25735019]
[1723958629172,0.1367,59679.0,59676.0,0.340055]
[1723958629173,0.0608,59679.0,59676.0,0.340055]
[1723958629374,0.1367,59682.0,59676.0,0.36088843]
[1723958638142,0.0608,59682.0,59676.0,0.36088843]
[1723958638345,0.1367,59685.0,59676.0,0.36088843]
[1723958638561,0.1367,59685.0,59676.0,0.43718843]
[1723958638762,0.1367,59688.0,59676.0,0.80549636]
[1723958639122,0.1367,59688.0,59676.0,0.80549319]
[1723958639322,0.1367,59688.0,59676.0,0.80449319]
[1723958639906,0.1367,59688.0,59676.0,0.80149319]
[1723958640106,0.1367,59688.0,59676.0,0.80249319]
[1723958640325,0.1367,59688.0,59676.0,0.79849319]
[1723958640719,0.1367,59688.0,59676.0,0.80549319]
[1723958640927,0.1367,59688.0,59676.0,0.80148869]
[1723958641329,0.001825,59677.0,59676.0,0.80748869]
[1723958642217,0.002825,59677.0,59676.0,0.81548869]
[1723958643408,0.002825,59677.0,59676.0,0.73278869]
[1723958643622,0.002825,59677.0,59676.0,0.67788869]
[1723958644832,0.002825,59677.0,59676.0,0.350055]
[1723958645034,0.002825,59677.0,59676.0,0.40579528]
[1723958646858,0.002825,59677.0,59676.0,0.37088457]
[1723958647034,0.002825,59677.0,59676.0,0.350055]
[1723958647282,0.002825,59677.0,59676.0,0.40580773]
[1723958648379,0.002825,59677.0,59676.0,0.350055]
[1723958648574,0.002825,59677.0,59676.0,0.40580695]
[1723958650793,0.144025,59677.0,59676.0,0.07275195]
[1723958651004,0.144025,59677.0,59676.0,0.0378339]
[1723958651005,0.194295,59677.0,59676.0,0.0378339]
[1723958651201,0.194295,59677.0,59676.0,0.017]
[1723958651202,0.294836,59677.0,59676.0,0.017]
[1723958651983,0.3333733,59677.0,59669.0,0.050276]
[1723958652182,0.3333733,59677.0,59659.0,0.07484533]
[1723958652183,0.3333733,59677.0,59662.0,0.0009075]
[1723958652184,0.31601,59663.0,59662.0,0.0009075]
[1723958652387,0.57889691,59663.0,59662.0,0.0009075]
[1723958652587,0.179982,59663.0,59662.0,0.0009075]
[1723958653266,0.179982,59663.0,59662.0,0.0826075]
[1723958653267,0.1297,59663.0,59662.0,0.0826075]
[1723958653472,0.280546,59663.0,59662.0,0.0826075]
[1723958654185,0.280546,59663.0,59662.0,0.0836075]
[1723958654186,0.294546,59663.0,59662.0,0.0836075]
[1723958654395,0.294546,59663.0,59662.0,0.0826075]
[1723958654594,0.294546,59663.0,59662.0,0.0836075]
[1723958654813,0.294546,59663.0,59662.0,0.0846075]
[1723958655824,0.294546,59663.0,59662.0,0.0836075]
[1723958656178,0.280546,59663.0,59662.0,0.0826075]
[1723958656582,0.284546,59663.0,59662.0,0.0826075]
[1723958657725,0.288546,59663.0,59662.0,0.0826075]
[1723958658139,0.288546,59663.0,59662.0,1.3520075]
[1723958659837,0.008,59663.0,59662.0,0.1328905]
[1723958660407,0.004,59663.0,59662.0,0.13624218]
[1723958660816,0.008,59663.0,59662.0,0.13624218]
[1723958660965,0.008,59663.0,59662.0,0.23680818]
[1723958661391,0.009,59663.0,59662.0,0.23680818]
[1723958661591,0.005,59663.0,59662.0,0.13624218]
[1723958662161,0.009,59663.0,59662.0,0.13624218]
[1723958662733,0.0761,59672.0,59664.0,0.100562]
[1723958662940,0.001,59663.0,59662.0,0.1401905]
[1723958663149,0.001,59663.0,59662.0,0.2407565]
[1723958663336,0.001,59663.0,59662.0,0.26725432]
[1723958663563,0.001,59663.0,59662.0,0.54037486]
[1723958663764,0.0651,59678.0,59673.0,0.050273]
[1723958663989,0.11537,59678.0,59674.0,0.0817]
[1723958664188,0.11537,59678.0,59674.0,0.08764438]
[1723958664513,0.051095,59677.0,59674.0,0.08764438]
[1723958665874,0.062095,59677.0,59674.0,0.08864438]
[1723958666091,0.073095,59677.0,59674.0,0.08864438]
[1723958669651,0.073095,59677.0,59674.0,0.00694438]
[1723958670077,0.050271,59676.0,59674.0,0.00694438]
[1723958670827,0.050272,59675.0,59674.0,0.00694438]
[1723958671457,0.050272,59675.0,59674.0,0.00594438]
[1723958671819,0.050272,59675.0,59662.0,0.0009075]
[1723958671820,0.1377,59673.0,59662.0,0.0009075]
[1723958671991,0.38911,59663.0,59662.0,0.0009075]
[1723958672202,0.56066454,59663.0,59662.0,0.0009075]
[1723958673500,0.66122854,59663.0,59662.0,0.0009075]
[1723958673734,0.67522854,59663.0,59662.0,0.0009075]
[1723958674471,0.68922854,59663.0,59662.0,0.0009075]
[1723958677722,0.58866454,59663.0,59662.0,0.0009075]
[1723958677943,0.254346,59663.0,59662.0,0.0009075]
[1723958678145,0.35491,59663.0,59662.0,0.0009075]
[1723958679610,0.35491,59663.0,59649.0,0.163688]
[1723958679611,0.1035,59663.0,59649.0,0.113393]
[1723958679813,0.1035,59663.0,59649.0,0.0631]
[1723958679814,0.05029,59654.0,59649.0,0.0631]
[1723958680673,0.050291,59653.0,59649.0,0.0631]
[1723958681707,0.05629,59654.0,59647.0,0.050295]
[1723958681911,0.004,59653.0,59648.0,0.02084684]
[1723958682106,0.004,59653.0,59649.0,0.02084684]
[1723958682276,0.004,59653.0,59647.0,0.050295]
[1723958682487,0.05429,59653.0,59648.0,0.02084681]
[1723958682689,0.05529,59653.0,59649.0,0.02084681]
[1723958682889,0.05529,59653.0,59647.0,0.050295]
[1723958683222,0.05529,59653.0,59648.0,0.0208468]
[1723958683422,0.05029,59653.0,59649.0,0.0208468]
[1723958683624,0.05029,59653.0,59648.0,0.050294]
[1723958683758,0.05029,59653.0,59649.0,0.0208468]
[1723958683759,0.05529,59653.0,59649.0,0.0208468]
[1723958683982,0.05529,59653.0,59646.0,1.319696]
[1723958683983,0.100584,59652.0,59646.0,1.2694]
[1723958684366,0.050294,59649.0,59646.0,1.2694]
[1723958684541,0.050294,59649.0,59643.0,0.072175]
[1723958684542,0.050294,59649.0,59644.0,0.050298]
[1723958684860,0.050294,59649.0,59645.0,0.02085005]
[1723958685061,0.050294,59649.0,59646.0,0.02084998]
[1723958685198,0.050294,59649.0,59644.0,0.050298]
[1723958685409,0.050294,59649.0,59645.0,0.02085018]
[1723958685672,0.050293,59651.0,59644.0,0.050298]
[1723958686059,0.050293,59650.0,59644.0,0.050298]
[1723958686632,0.050294,59649.0,59644.0,0.050298]
[1723958687186,0.053292,59651.0,59644.0,0.050298]
[1723958687393,0.053292,59651.0,59645.0,0.050297]
[1723958687615,0.050292,59651.0,59645.0,0.050297]
[1723958688077,0.051292,59651.0,59645.0,0.050297]
[1723958688598,0.050292,59651.0,59645.0,0.050297]
[1723958688765,0.051292,59651.0,59645.0,0.050297]
[1723958688971,0.001,59650.0,59645.0,0.050297]
[1723958690646,0.051292,59651.0,59645.0,0.050297]
[1723958690853,0.001,59650.0,59645.0,0.050297]
[1723958692196,0.051292,59651.0,59645.0,0.050297]
[1723958692384,0.053292,59651.0,59645.0,0.050297]
[1723958692871,0.050292,59651.0,59645.0,0.050297]
[1723958693062,0.001,59650.0,59643.0,1.341575]
[1723958693263,0.050296,59647.0,59643.0,1.341575]
[1723958693801,0.050296,59647.0,59643.0,0.072175]
[1723958695436,0.050296,59647.0,59644.0,0.0009075]
[1723958695595,0.052296,59647.0,59644.0,0.0009075]
[1723958696025,0.056296,59647.0,59644.0,0.0009075]
[1723958696227,0.052296,59647.0,59644.0,0.0009075]
[1723958696435,0.054296,59647.0,59644.0,0.0009075]
[1723958697506,0.004,59647.0,59644.0,0.0009075]
[1723958697733,0.006,59647.0,59644.0,0.0009075]
[1723958697894,0.006,59647.0,59646.0,0.050296]
[1723958698087,0.006,59647.0,59646.0,0.07115132]
[1723958698487,0.004,59647.0,59646.0,0.07115132]
[1723958698694,0.005,59647.0,59646.0,0.15285132]
[1723958698892,0.001,59647.0,59646.0,0.15285132]
[1723958699093,0.001,59647.0,59646.0,0.22865132]
[1723958699303,0.000825,59651.0,59647.0,0.050295]
[1723958699506,0.000825,59651.0,59648.0,0.02420781]
[1723958699669,0.000825,59651.0,59649.0,0.02085532]
[1723958699863,0.000825,59651.0,59650.0,0.02420781]
[1723958700477,0.000825,59651.0,59650.0,0.02420507]
[1723958700478,0.005825,59651.0,59650.0,0.02420507]
[1723958700740,0.005825,59651.0,59650.0,0.31698407]
[1723958701135,0.005825,59651.0,59650.0,0.58912461]
[1723958701340,0.009825,59651.0,59650.0,0.52013504]
[1723958701525,0.009825,59651.0,59650.0,0.48518612]
[1723958701727,0.009825,59651.0,59650.0,0.52013508]
[1723958701728,0.000825,59651.0,59650.0,0.52013508]
[1723958702136,0.005825,59651.0,59650.0,0.52013508]
[1723958702542,0.001825,59651.0,59650.0,0.52013508]
[1723958702770,0.001825,59651.0,59650.0,1.79053508]
[1723958702962,0.002825,59651.0,59650.0,1.79053508]
[1723958703397,0.002825,59651.0,59650.0,1.79053278]
[1723958703734,0.002825,59651.0,59650.0,1.79053273]
[1723958703938,0.001825,59651.0,59650.0,1.79053273]
[1723958704330,0.001825,59651.0,59650.0,1.73473354]
[1723958704498,0.002825,59651.0,59650.0,1.79053273]
[1723958707316,0.002825,59651.0,59650.0,1.29125086]
[1723958707518,0.002825,59651.0,59650.0,1.29125014]
[1723958708095,0.002825,59651.0,59650.0,1.29025014]
[1723958708096,0.051117,59651.0,59650.0,1.29025014]
[1723958708322,0.051117,59651.0,59650.0,1.29125014]
[1723958708656,0.152702,59651.0,59650.0,0.02085014]
[1723958709059,0.152702,59651.0,59650.0,0.02185014]
[1723958709480,0.394287,59651.0,59650.0,0.02185014]
[1723958709685,0.394287,59651.0,59650.0,0.001]
[1723958709896,0.394287,59651.0,59644.0,0.0009075]
[1723958709897,0.050297,59645.0,59644.0,0.0009075]
[1723958710099,0.050297,59646.0,59644.0,0.0217656]
[1723958710298,0.050297,59646.0,59645.0,0.0208581]
[1723958710908,0.15089,59646.0,59645.0,0.0208581]
[1723958711148,0.050297,59646.0,59645.0,0.0208581]
[1723958711349,0.22879,59646.0,59645.0,0.0208581]
[1723958712895,0.23079,59646.0,59645.0,0.0208581]
[1723958713586,0.22879,59646.0,59645.0,0.0208581]
[1723958714927,0.22879,59646.0,59645.0,0.0218581]
[1723958715253,0.22879,59646.0,59645.0,0.0208581]
[1723958715625,0.050297,59645.0,59644.0,0.0009075]
[1723958715824,0.150892,59645.0,59644.0,0.02176565]
[1723958717764,0.66898773,59645.0,59644.0,0.02176565]
[1723958718086,0.69523723,59645.0,59644.0,0.0009075]
[1723958718535,0.77067472,59645.0,59644.0,0.0009075]
[1723958719267,0.69523723,59645.0,59644.0,0.0009075]
[1723958719484,0.70923723,59645.0,59644.0,0.0009075]
[1723958719710,0.69523723,59645.0,59644.0,0.0009075]
[1723958720117,0.70923723,59645.0,59644.0,0.0009075]
[1723958720363,0.7734896,59645.0,59644.0,0.0009075]
[1723958720557,0.89531832,59645.0,59644.0,0.0009075]
[1723958720990,0.88131832,59645.0,59644.0,0.0009075]
[1723958721160,0.7734896,59645.0,59644.0,0.0009075]
[1723958721380,0.73223723,59645.0,59644.0,0.0009075]
[1723958721581,0.74623723,59645.0,59644.0,0.0009075]
[1723958722128,0.71823723,59645.0,59644.0,0.0009075]
[1723958722281,0.74623723,59645.0,59644.0,0.0009075]
[1723958722497,0.74623723,59645.0,59626.0,0.0637]
[1723958722498,0.74623723,59645.0,59598.0,0.12501967]